fUSD/lending_fUSD_20251129
["ID","MTS","AMOUNT","RATE_DAILY","PERIOD"]
[395054835,1764381047014,-300.0,0.00016975,2]
[395054836,1764381047024,-300.0,0.00016976,2]
[395054837,1764381047034,-300.0,0.00016979,2]
[395054838,1764381047044,-300.0,0.00016986,2]
[395054839,1764381047053,-6752.0,0.00016986,2]
[395054840,1764381047062,-6127.0,0.00016986,2]
[395054841,1764381047071,-300.0,0.00016989,2]
[395054842,1764381047081,-1423.47859437,0.0001699,2]
[395054843,1764381047091,-1423.47859437,0.0001699,2]
[395054844,1764381047100,-300.0,0.00016999,2]
[395054845,1764381047109,-500.0,0.00016999,2]
[395054846,1764381047118,-500.0,0.00016999,2]
[395054847,1764381047128,-500.0,0.00016999,2]
[395054848,1764381047137,-500.0,0.00016999,2]
[395054849,1764381047146,-272.31531384,0.00016999,2]
[395054850,1764381047156,-500.0,0.00016999,2]
[395054851,1764381047166,-524.74978139,0.00016999,2]
[395054852,1764381047175,-500.0,0.00016999,2]
[395054853,1764381047184,-500.0,0.00016999,2]
[395054854,1764381047193,-532.59351283,0.00016999,2]
[395054855,1764381047202,-500.27300015,0.00016999,2]
[395054856,1764381047211,-361645.13645256,0.00017,2]
[395054857,1764381047220,-358669.0630205,0.00017,2]
[395054858,1764381047229,-103340.54995163,0.00017,2]
[395054859,1764381047238,-383265.14404572,0.00017,2]
[395054860,1764381047263,-617.66237825,0.00017,2]
[395054861,1764381048599,-998.14264926,0.00014939,2]
[395054862,1764381048610,-553.03813932,0.00017,2]
[395054863,1764381049477,-1364.61,0.00017,2]
[395054864,1764381739507,233.77,7.738e-05,2]
[395054873,1764382023448,3290.5,0.00022,30]
[395054884,1764382175853,480.52,0.00013699,2]
[395054888,1764382232234,-150.0,0.00014837,2]
[395054889,1764382232243,-300.0,0.00014837,2]
[395054890,1764382232254,-1.69721234,0.00014837,2]
[395054891,1764382232266,-1198.30278766,0.00014837,2]
[395054892,1764382232276,-250.0,0.00014837,2]
[395054893,1764382232285,-568.53518091,0.00014838,2]
[395054894,1764382232295,-152.77801027,0.00014838,2]
[395054895,1764382232306,-500.0,0.00014838,2]
[395054896,1764382232316,-500.0,0.00014838,2]
[395054897,1764382232325,-500.0,0.00014838,2]
[395054898,1764382232334,-500.0,0.00014838,2]
[395054899,1764382232351,-500.0,0.00014838,2]
[395054900,1764382232363,-500.0,0.00014838,2]
[395054901,1764382232372,-500.0,0.00014838,2]
[395054902,1764382232382,-500.0,0.00014838,2]
[395054903,1764382232391,-500.0,0.00014838,2]
[395054904,1764382232400,-500.0,0.00014838,2]
[395054905,1764382232410,-500.0,0.00014838,2]
[395054906,1764382232420,-500.0,0.00014838,2]
[395054907,1764382232431,-500.0,0.00014838,2]
[395054908,1764382232441,-347.72272591,0.00014838,2]
[395054910,1764382232451,-500.0,0.00014838,2]
[395054912,1764382232460,-500.0,0.00014838,2]
[395054914,1764382232469,-500.0,0.00014838,2]
[395054916,1764382232478,-28345.9942,0.00014839,2]
[395054918,1764382232487,-1287.0228,0.00014839,2]
[395054920,1764382232496,-235.2676,0.00014839,2]
[395054922,1764382232505,-280.8168,0.00014839,2]
[395054924,1764382232515,-41049.95815872,0.00014839,2]
[395054928,1764382232544,-4648.87772974,0.00014839,2]
[395054930,1764382232555,-1272.87769172,0.00014839,2]
[395054934,1764382232578,-6042.83991195,0.00014839,2]
[395055070,1764382239851,-3011.53464987,0.00014839,2]
[395055126,1764382240309,-328.0932441,0.00014839,2]
[395055129,1764382240321,-1756.0,0.00014839,2]
[395055131,1764382240332,-100413.2536139,0.00014839,2]
[395055133,1764382240342,-2500.0,0.00014839,2]
[395055135,1764382240352,-1118.45361041,0.00014839,2]
[395055137,1764382240362,-500.0,0.0001493,2]
[395055140,1764382240371,-274.65024877,0.0001493,2]
[395055142,1764382240381,-151.0,0.0001493,2]
[395055144,1764382240390,-151.0,0.0001493,2]
[395055146,1764382240400,-173.02229125,0.0001493,2]
[395055148,1764382240410,-1127.894,0.00014938,2]
[395055150,1764382240419,-161.384,0.00014938,2]
[395055152,1764382240429,-500.0,0.00014938,2]
[395055154,1764382240438,-509.22860967,0.00014938,2]
[395055156,1764382240447,-500.0,0.00014938,2]
[395055158,1764382240456,-507.31505474,0.00014938,2]
[395055160,1764382240465,-500.0,0.00014938,2]
[395055162,1764382240475,-504.72140363,0.00014938,2]
[395055164,1764382240484,-731.5,0.00014938,2]
[395055166,1764382240493,-1000.0,0.00014939,2]
[395055168,1764382240503,-168.80860309,0.00014973,2]
[395055170,1764382240512,-500.0,0.00014973,2]
[395055172,1764382240522,-501.17609178,0.00014973,2]
[395055174,1764382240532,-500.60490188,0.00014973,2]
[395055176,1764382240541,-500.0,0.00014973,2]
[395055178,1764382240551,-501.92314784,0.00014973,2]
[395055180,1764382240560,-500.0,0.00014973,2]
[395055182,1764382240569,-501.60422805,0.00014973,2]
[395055184,1764382240579,-598.51138711,0.00014973,2]
[395055186,1764382240588,-500.0,0.00014973,2]
[395055188,1764382240597,-500.0,0.00014973,2]
[395055190,1764382240606,-502.19807577,0.00014973,2]
[395055192,1764382240615,-160.05006071,0.00014973,2]
[395055194,1764382240624,-500.0,0.00014973,2]
[395055195,1764382240634,-500.0,0.00015138,2]
[395055196,1764382240643,-500.0,0.00015138,2]
[395055197,1764382240653,-500.0,0.00015138,2]
[395055198,1764382240662,-500.0,0.00015138,2]
[395055199,1764382240671,-524.74978139,0.00015138,2]
[395055200,1764382240680,-500.0,0.00015138,2]
[395055201,1764382240690,-500.0,0.00015138,2]
[395055202,1764382240699,-532.59351283,0.00015138,2]
[395055203,1764382240708,-500.0,0.00015138,2]
[395055204,1764382240718,-500.0,0.00015138,2]
[395055205,1764382240727,-500.27300015,0.00015138,2]
[395055206,1764382240737,-511.38270087,0.00015138,2]
[395055207,1764382240746,-150.0,0.00015288,2]
[395055208,1764382240756,-36584.46391725,0.00015326,2]
[395055209,1764382240766,-731.5,0.00015486,2]
[395055210,1764382240775,-500.84785814,0.00015521,2]
[395055211,1764382240785,-173.87074262,0.00015521,2]
[395055212,1764382240795,-505.34047278,0.00015521,2]
[395055213,1764382240804,-1000.0,0.00015521,2]
[395055214,1764382240818,-504.0571586,0.00015521,2]
[395055215,1764382240827,-1000.0,0.00015521,2]
[395055217,1764382240836,-3147.95,0.00015523,2]
[395055219,1764382240846,-924.5,0.00015588,2]
[395055221,1764382240855,-1118.45361038,0.0001562,2]
[395055223,1764382240864,-731.5,0.0001576,2]
[395055225,1764382240873,-250.0,0.00015796,2]
[395055227,1764382240883,-677.75966147,0.00015818,2]
[395055229,1764382240893,-267.46074303,0.00015818,2]
[395055231,1764382240903,-666.0,0.00015818,2]
[395055233,1764382240912,-500.0,0.00015818,2]
[395055236,1764382240922,-500.0,0.00015818,2]
[395055238,1764382240931,-500.0,0.00015818,2]
[395055240,1764382240941,-500.0,0.00015818,2]
[395055242,1764382240950,-500.0,0.00015818,2]
[395055244,1764382240960,-500.0,0.00015818,2]
[395055246,1764382240970,-500.0,0.00015818,2]
[395055248,1764382240979,-500.0,0.00015818,2]
[395055250,1764382240988,-500.0,0.00015818,2]
[395055252,1764382240997,-500.0,0.00015818,2]
[395055254,1764382241006,-500.0,0.00015818,2]
[395055256,1764382241015,-500.0,0.00015818,2]
[395055258,1764382241024,-151.0,0.00015818,2]
[395055260,1764382241034,-300.0,0.00015818,2]
[395055262,1764382241043,-150.0,0.00015965,2]
[395055264,1764382241052,-200.0,0.00015979,2]
[395055266,1764382241061,-731.5,0.00016034,2]
[395055268,1764382241070,-1500.0,0.00016068,2]
[395055270,1764382241079,-501.69053281,0.00016068,2]
[395055272,1764382241089,-168.0,0.00016096,2]
[395055274,1764382241098,-306.48,0.00016116,2]
[395055276,1764382241108,-9999.99,0.00016116,2]
[395055278,1764382241117,-1190.92,0.00016116,2]
[395055280,1764382241127,-9605.1,0.00016116,2]
[395055282,1764382241136,-3503.3,0.00016116,2]
[395055284,1764382241145,-299.99,0.00016116,4]
[395055286,1764382241155,-9999.99,0.00016116,2]
[395055288,1764382241164,-911.972,0.00016277,2]
[395055290,1764382241174,-1193.0,0.00016277,2]
[395055292,1764382241183,-731.50162412,0.00016308,2]
[395055294,1764382241192,-250.0,0.00016321,2]
[395055296,1764382241202,-1680.0,0.00016321,2]
[395055298,1764382241211,-666.0,0.00016366,2]
[395055300,1764382241221,-500.0,0.00016372,2]
[395055302,1764382241230,-272.31531384,0.00016372,2]
[395055304,1764382241240,-255.72799613,0.0001639,2]
[395055306,1764382241249,-1227.00449532,0.00016392,2]
[395055308,1764382241258,-314.41349038,0.000164,2]
[395055310,1764382241268,-1118.45361038,0.00016401,2]
[395055312,1764382241279,-500.0,0.00016438,2]
[395055314,1764382241287,-500.0,0.00016438,2]
[395055316,1764382241297,-500.0,0.00016438,2]
[395055318,1764382241306,-563.89418676,0.00016438,2]
[395055320,1764382241316,-3210.17,0.00016438,2]
[395055322,1764382241325,-605.63539217,0.00016438,2]
[395055324,1764382241335,-159.01047172,0.00016472,2]
[395055326,1764382241344,-500.0,0.00016472,2]
[395055328,1764382241354,-150.0,0.00016472,2]
[395055330,1764382241363,-500.0,0.00016472,2]
[395055332,1764382241373,-150.0,0.00016472,2]
[395055334,1764382241382,-500.0,0.00016472,2]
[395055336,1764382241392,-150.0,0.00016472,2]
[395055338,1764382241402,-500.0,0.00016472,2]
[395055340,1764382241411,-500.0,0.00016472,2]
[395055342,1764382241421,-150.0,0.00016472,2]
[395055344,1764382241430,-496.0,0.00016472,2]
[395055346,1764382241439,-500.0,0.00016472,2]
[395055348,1764382241449,-500.0,0.00016472,2]
[395055350,1764382241458,-150.0,0.00016472,2]
[395055352,1764382241467,-352.10572654,0.00016546,2]
[395055354,1764382241477,-221.0,0.00016563,2]
[395055356,1764382241487,-5972.5338106,0.00016564,2]
[395055358,1764382241496,-1660.0,0.00016582,2]
[395055360,1764382241506,-32316.46325415,0.00016589,2]
[395055362,1764382241516,-138466.26998885,0.0001659,2]
[395055365,1764382241526,-224.82766513,0.00016596,2]
[395055367,1764382241535,-166.17,0.00016601,2]
[395055369,1764382241544,-500.0,0.00016609,2]
[395055371,1764382241554,-500.0,0.00016609,2]
[395055373,1764382241563,-500.0,0.00016609,2]
[395055375,1764382241576,-500.0,0.00016609,2]
[395055377,1764382241586,-500.0,0.00016609,2]
[395055379,1764382241595,-150.0,0.00016609,2]
[395055381,1764382241604,-496.0,0.00016609,2]
[395055383,1764382241614,-500.0,0.00016609,2]
[395055385,1764382241623,-500.0,0.00016609,2]
[395055387,1764382241632,-221.38150535,0.00016609,2]
[395055389,1764382241642,-2000.0,0.00016616,2]
[395055391,1764382241652,-650.44247903,0.0001666,2]
[395055393,1764382241661,-168.0,0.0001666,2]
[395055395,1764382241670,-152.0,0.00016694,2]
[395055397,1764382241680,-152.0,0.00016694,2]
[395055399,1764382241690,-152.0,0.00016694,2]
[395055401,1764382241700,-152.0,0.00016694,2]
[395055403,1764382241709,-152.0,0.00016694,2]
[395055406,1764382241718,-152.0,0.00016694,2]
[395055408,1764382241728,-152.0,0.00016694,2]
[395055409,1764382241738,-152.0,0.00016694,2]
[395055412,1764382241748,-152.0,0.00016694,2]
[395055414,1764382241757,-152.0,0.00016694,2]
[395055416,1764382241770,-152.0,0.00016694,2]
[395055418,1764382241779,-152.0,0.00016694,2]
[395055420,1764382241789,-152.0,0.00016694,2]
[395055422,1764382241799,-152.0,0.00016694,2]
[395055424,1764382241809,-152.0,0.00016694,2]
[395055426,1764382241821,-152.0,0.00016694,2]
[395055428,1764382241831,-152.0,0.00016694,2]
[395055431,1764382241840,-152.0,0.00016694,2]
[395055433,1764382241851,-152.0,0.00016694,2]
[395055435,1764382241860,-1000.0,0.000167,2]
[395055437,1764382241870,-300.0,0.00016734,2]
[395055439,1764382241880,-300.0,0.00016735,2]
[395055441,1764382241891,-1000.0,0.00016737,2]
[395055443,1764382241901,-1000.0,0.00016737,2]
[395055445,1764382241911,-300.0,0.00016741,2]
[395055447,1764382241920,-1000.0,0.00016742,2]
[395055449,1764382241930,-1000.0,0.00016742,2]
[395055451,1764382241939,-500.0,0.00016746,2]
[395055453,1764382241948,-502.75347519,0.00016746,2]
[395055455,1764382241957,-517.06260032,0.00016746,2]
[395055457,1764382241967,-511.32415705,0.00016746,2]
[395055460,1764382241979,-500.0,0.00016746,2]
[395055462,1764382241988,-179.38602173,0.00016746,2]
[395055464,1764382241998,-496.0,0.00016746,2]
[395055466,1764382242007,-502.29927757,0.00016746,2]
[395055468,1764382242017,-500.0,0.00016746,2]
[395055470,1764382242026,-300.0,0.00016746,2]
[395055472,1764382242036,-300.0,0.00016754,2]
[395055474,1764382242045,-1000.0,0.00016755,2]
[395055476,1764382242055,-300.0,0.00016757,2]
[395055478,1764382242064,-1000.0,0.00016763,2]
[395055480,1764382242073,-300.0,0.00016764,2]
[395055482,1764382242083,-150.0,0.00016766,2]
[395055484,1764382242092,-1000.0,0.00016777,2]
[395055486,1764382242103,-300.0,0.00016779,2]
[395055488,1764382242112,-300.0,0.0001678,2]
[395055490,1764382242122,-300.0,0.00016788,2]
[395055492,1764382242131,-300.0,0.00016792,2]
[395055494,1764382242141,-1000.0,0.00016798,2]
[395055496,1764382242151,-300.0,0.000168,2]
[395055499,1764382242166,-765.3699668,0.000168,2]
[395055541,1764382242533,-300.0,0.00016801,2]
[395055543,1764382242544,-300.0,0.00016803,2]
[395055545,1764382242554,-1601.25320241,0.00016803,2]
[395055547,1764382242563,-300.0,0.00016807,2]
[395055549,1764382242571,-1000.0,0.0001681,2]
[395055551,1764382242580,-300.0,0.00016812,2]
[395055553,1764382242589,-300.0,0.00016813,2]
[395055556,1764382242607,-1000.0,0.00016818,2]
[395055558,1764382242617,-1000.0,0.00016823,2]
[395055560,1764382242627,-300.0,0.00016824,2]
[395055562,1764382242636,-150.0,0.00016824,2]
[395055564,1764382242647,-300.0,0.00016828,2]
[395055566,1764382242657,-300.0,0.0001683,2]
[395055568,1764382242666,-2810.46055,0.0001683,2]
[395055571,1764382242676,-300.0,0.00016832,2]
[395055573,1764382242685,-300.0,0.00016833,2]
[395055575,1764382242696,-1000.0,0.00016833,2]
[395055577,1764382242706,-1000.0,0.00016836,2]
[395055579,1764382242715,-1000.0,0.00016838,2]
[395055581,1764382242724,-1000.0,0.00016847,2]
[395055583,1764382242733,-300.0,0.0001685,2]
[395055585,1764382242743,-300.0,0.00016856,2]
[395055587,1764382242752,-300.0,0.00016856,2]
[395055589,1764382242762,-300.0,0.00016861,2]
[395055591,1764382242771,-300.0,0.00016866,2]
[395055593,1764382242781,-1000.0,0.00016866,2]
[395055595,1764382242791,-300.0,0.00016868,2]
[395055597,1764382242800,-4102.0,0.00016876,2]
[395055599,1764382242813,-500.0,0.00016876,2]
[395055601,1764382242822,-500.0,0.00016876,2]
[395055603,1764382242832,-500.0,0.00016876,2]
[395055605,1764382242842,-500.0,0.00016876,2]
[395055607,1764382242852,-459.83789569,0.00016876,2]
[395055609,1764382242862,-500.0,0.00016883,2]
[395055611,1764382242871,-318.04186635,0.00016883,2]
[395055613,1764382242881,-496.0,0.00016883,2]
[395055615,1764382242890,-500.0,0.00016883,2]
[395055617,1764382242900,-300.0,0.00016883,2]
[395055619,1764382242910,-1000.0,0.00016883,2]
[395055621,1764382242920,-1000.0,0.00016888,2]
[395055623,1764382242929,-1000.0,0.00016893,2]
[395055625,1764382242939,-1000.0,0.00016895,2]
[395055628,1764382242949,-300.0,0.00016897,2]
[395055630,1764382242959,-1000.0,0.00016898,2]
[395055632,1764382242968,-300.0,0.00016899,2]
[395055634,1764382242978,-282.15,0.000169,2]
[395055636,1764382242988,-456.29479745,0.000169,2]
[395055638,1764382242997,-1000.0,0.000169,2]
[395055640,1764382243007,-1000.0,0.000169,2]
[395055642,1764382243016,-304.0,0.000169,2]
[395055644,1764382243025,-839.0,0.000169,2]
[395055646,1764382243034,-287.07079724,0.000169,2]
[395055648,1764382243044,-354.0,0.000169,2]
[395055650,1764382243053,-510.18003599,0.000169,2]
[395055652,1764382243063,-205.96844425,0.000169,2]
[395055654,1764382243072,-970.0,0.000169,2]
[395055656,1764382243081,-595.07469987,0.000169,2]
[395055658,1764382243090,-300.0,0.00016905,2]
[395055660,1764382243099,-300.0,0.00016908,2]
[395055662,1764382243108,-666.0,0.00016914,2]
[395055664,1764382243118,-300.0,0.00016915,2]
[395055666,1764382243127,-1000.0,0.00016924,2]
[395055668,1764382243141,-1000.0,0.00016924,2]
[395055670,1764382243150,-300.0,0.00016927,2]
[395055672,1764382243160,-300.0,0.00016929,2]
[395055674,1764382243169,-1000.0,0.00016931,2]
[395055676,1764382243178,-300.0,0.00016934,2]
[395055678,1764382243188,-150.0,0.00016934,2]
[395055681,1764382243200,-300.0,0.00016935,2]
[395055684,1764382243210,-300.0,0.00016937,2]
[395055686,1764382243220,-300.0,0.00016937,2]
[395055688,1764382243230,-1000.0,0.00016941,2]
[395055690,1764382243240,-1000.0,0.00016943,2]
[395055693,1764382243250,-300.0,0.00016944,2]
[395055696,1764382243260,-300.0,0.00016946,2]
[395055698,1764382243270,-161.71183343,0.00016947,2]
[395055700,1764382243279,-924.82002176,0.00016948,2]
[395055702,1764382243289,-300.0,0.00016951,2]
[395055704,1764382243298,-300.0,0.00016952,2]
[395055707,1764382243307,-300.0,0.00016956,2]
[395055710,1764382243317,-1000.0,0.00016958,2]
[395055713,1764382243327,-1000.0,0.00016961,2]
[395055716,1764382243336,-1000.0,0.00016963,2]
[395055719,1764382243346,-300.0,0.00016969,2]
[395055722,1764382243356,-500.0,0.0001697,2]
[395055726,1764382243366,-500.0,0.0001697,2]
[395055729,1764382243375,-1000.0,0.0001697,2]
[395055731,1764382243385,-500.0,0.0001697,2]
[395055733,1764382243395,-500.0,0.0001697,2]
[395055735,1764382243404,-1000.0,0.0001697,2]
[395055737,1764382243414,-500.0,0.0001697,2]
[395055739,1764382243424,-1000.0,0.0001697,2]
[395055741,1764382243433,-1000.0,0.0001697,2]
[395055743,1764382243443,-500.0,0.0001697,2]
[395055745,1764382243452,-1000.0,0.0001697,2]
[395055747,1764382243462,-1000.0,0.0001697,2]
[395055749,1764382243471,-300.0,0.0001697,2]
[395055751,1764382243481,-684.40163245,0.0001697,2]
[395055753,1764382243490,-1136.57021784,0.0001697,2]
[395055755,1764382243499,-500.68309836,0.00016973,2]
[395055757,1764382243508,-500.0,0.00016973,2]
[395055759,1764382243517,-500.0,0.00016973,2]
[395055761,1764382243527,-500.99036577,0.00016973,2]
[395055763,1764382243536,-500.0,0.00016973,2]
[395055765,1764382243545,-500.0,0.00016973,2]
[395055767,1764382243555,-500.0,0.00016973,2]
[395055769,1764382243564,-179.09525737,0.00016973,2]
[395055771,1764382243574,-500.0,0.00016973,2]
[395055773,1764382243583,-500.0,0.00016973,2]
[395055776,1764382243593,-161.52693208,0.00016973,2]
[395055778,1764382243603,-500.0,0.00016973,2]
[395055780,1764382243612,-500.0,0.00016973,2]
[395055782,1764382243622,-333.4830249,0.00016973,2]
[395055784,1764382243631,-150.0,0.00016973,2]
[395055786,1764382243641,-161.88708279,0.00016973,2]
[395055788,1764382243651,-501.30920942,0.00016973,2]
[395055790,1764382243660,-160.05339585,0.00016973,2]
[395055792,1764382243670,-500.47988621,0.00016973,2]
[395055794,1764382243680,-500.0,0.00016973,2]
[395055796,1764382243689,-500.0,0.00016973,2]
[395055798,1764382243698,-500.0,0.00016973,2]
[395055800,1764382243708,-500.84072702,0.00016973,2]
[395055802,1764382243718,-160.05429824,0.00016973,2]
[395055804,1764382243728,-160.05340156,0.00016973,2]
[395055806,1764382243738,-500.0,0.00016973,2]
[395055808,1764382243747,-160.04790808,0.00016973,2]
[395055810,1764382243759,-500.94005513,0.00016973,2]
[395055812,1764382243769,-160.14128752,0.00016973,2]
[395055815,1764382243779,-160.27048871,0.00016973,2]
[395055818,1764382243789,-156.0371633,0.00016973,2]
[395055821,1764382243799,-500.0,0.00016973,2]
[395055823,1764382243808,-175.94033749,0.00016973,2]
[395055825,1764382243822,-230.8313981,0.00016973,2]
[395055827,1764382243831,-500.0,0.00016973,2]
[395055830,1764382243842,-159.99691032,0.00016973,2]
[395055832,1764382243851,-500.0,0.00016973,2]
[395055834,1764382243863,-500.0,0.00016973,2]
[395055836,1764382243873,-361.36474223,0.00016973,2]
[395055838,1764382243883,-200.84077125,0.00016973,2]
[395055840,1764382243895,-500.0,0.00016973,2]
[395055842,1764382243907,-500.89201564,0.00016973,2]
[395055844,1764382243917,-500.0,0.00016973,2]
[395055846,1764382243927,-500.0,0.00016973,2]
[395055848,1764382243937,-500.84864969,0.00016973,2]
[395055850,1764382243947,-160.04815265,0.00016973,2]
[395055852,1764382243957,-500.0,0.00016973,2]
[395055854,1764382243974,-501.57067169,0.00016973,2]
[395055856,1764382243984,-300.0,0.00016973,2]
[395055858,1764382243993,-300.0,0.00016976,2]
[395055860,1764382244003,-300.0,0.00016978,2]
[395055862,1764382244013,-300.0,0.00016979,2]
[395055864,1764382244022,-1660.0,0.0001698,2]
[395055866,1764382244032,-300.0,0.00016986,2]
[395055869,1764382244042,-6898.0,0.00016986,2]
[395055871,1764382244052,-6127.0,0.00016986,2]
[395055873,1764382244061,-1000.0,0.00016987,2]
[395055875,1764382244071,-300.0,0.00016989,2]
[395055877,1764382244080,-158.0,0.0001699,2]
[395055879,1764382244090,-158.0,0.0001699,2]
[395055881,1764382244099,-300.0,0.0001699,2]
[395055883,1764382244108,-948.98572958,0.0001699,2]
[395055885,1764382244118,-948.98572958,0.0001699,2]
[395055887,1764382244128,-300.0,0.00016992,2]
[395055889,1764382244138,-300.0,0.00016997,2]
[395055891,1764382244147,-19126.827767,0.00016998,2]
[395055893,1764382244157,-1461.9731992,0.00016998,2]
[395055895,1764382244167,-4065.6277634,0.00016998,2]
[395055897,1764382244177,-70002.2142455,0.00016998,2]
[395055899,1764382244187,-300.0,0.00016998,2]
[395055901,1764382244198,-1477.2504741,0.00016998,2]
[395055904,1764382244209,-300.0,0.00016999,2]
[395055906,1764382244219,-300.0,0.00016999,2]
[395055908,1764382244229,-308869.74842623,0.00017,2]
[395055910,1764382244238,-789003.49776996,0.00017,2]
[395055914,1764382244268,-687.65999922,0.00017,2]
[395055916,1764382244283,-6450.40605885,0.00017,2]
[395055919,1764382244294,-834.66932642,0.00017,2]
[395056029,1764382245530,-306.23900044,0.00017,2]
[395056159,1764382246777,-318.00863237,0.00017,2]
[395056167,1764382246845,-3022.58006264,0.00017,2]
[395056462,1764382311921,-259.51001762,0.00014738,2]
[395056463,1764382314669,-166.66,0.00014738,2]
[395056464,1764382316543,-195.61395219,0.00014738,2]
[395056465,1764382319100,-172.80716714,0.00014738,2]
[395056466,1764382320668,-300.0,0.00014738,2]
[395056467,1764382342427,-11.14696305,0.00014738,2]
[395056468,1764382342447,-155.51303695,0.00014739,2]
[395056469,1764382344128,-263.01952989,0.00014739,2]
[395056470,1764382346191,-222.65612674,0.00014739,2]
[395056471,1764382349728,-400.0,0.00014739,2]
[395056472,1764382351999,-436.99604963,0.00014739,2]
[395056473,1764382353682,-195.0,0.00014739,2]
[395056474,1764382432863,1391.2354,0.00025,120]
[395056475,1764382484964,1065.95606451,0.00014639,2]
[395056476,1764382506844,-151.0,0.00014736,2]
[395056477,1764382506868,-17.08809835,0.00014737,2]
[395056478,1764382508487,-282.91190165,0.00014737,2]
[395056479,1764382508509,-300.0,0.00014737,2]
[395056480,1764382508535,-503.32,0.00014737,2]
[395056481,1764382538382,-5000000.0,0.00042078,30]
[395056482,1764382544060,500.0,0.00014639,2]
[395056483,1764382567039,-5000000.0,0.00042078,30]
[395056484,1764382572990,-5000000.0,0.00042078,30]
[395056485,1764382578334,-5000000.0,0.00042078,30]
[395056486,1764382585409,-5000000.0,0.00042078,30]
[395056487,1764382590218,-5000000.0,0.00042078,30]
[395056488,1764382638910,-6000000.0,0.00042078,30]
[395056489,1764382649877,-5351710.60323553,0.00042078,30]
[395056490,1764382649908,-10000.0,0.00042078,120]
[395056491,1764382649939,-549.64136946,0.00042078,120]
[395056492,1764382649974,-85276.0127224,0.00042078,30]
[395056493,1764382650005,-552463.74267261,0.00042078,30]
[395056494,1764382656265,-3561897.42298943,0.00042078,30]
[395056495,1764382656294,-217652.76498712,0.00042078,30]
[395056496,1764382656323,-8700.10718487,0.00042078,30]
[395056497,1764382656352,-9042.20668576,0.00042078,30]
[395056498,1764382656383,-7599.14201088,0.00042078,30]
[395056499,1764382656411,-7322.88894189,0.00042078,30]
[395056500,1764382656438,-2000.0,0.00042078,31]
[395056501,1764382656466,-157.68560903,0.00042078,120]
[395056502,1764382656493,-189.0,0.00042078,120]
[395056503,1764382656521,-198.44916271,0.00042078,30]
[395056504,1764382656547,-71271.22813491,0.00042078,34]
[395056505,1764382656576,-1063.47482813,0.00042078,120]
[395056506,1764382656602,-671425.0,0.00042078,60]
[395056507,1764382656630,-1993.36320961,0.00042078,30]
[395056508,1764382656659,-1340.25211231,0.00042078,120]
[395056509,1764382656686,-1315.32821006,0.00042078,30]
[395056510,1764382656714,-500.0,0.00042078,31]
[395056511,1764382656744,-500.0,0.00042078,31]
[395056512,1764382656771,-500.0,0.00042078,31]
[395056513,1764382656797,-500.0,0.00042078,31]
[395056514,1764382656826,-500.0,0.00042078,31]
[395056515,1764382656855,-513.13751799,0.00042078,31]
[395056516,1764382656882,-500.0,0.00042078,31]
[395056517,1764382656910,-500.0,0.00042078,31]
[395056518,1764382656939,-500.0,0.00042078,31]
[395056519,1764382656975,-500.0,0.00042078,31]
[395056520,1764382657005,-500.0,0.00042078,31]
[395056521,1764382657035,-500.0,0.00042078,31]
[395056522,1764382657062,-500.0,0.00042078,31]